fUST/lending_fUST_20260511
["ID","MTS","AMOUNT","RATE_DAILY","PERIOD"]
[422004286,1778445040000,-1328.58,0.00011506,2]
[422004291,1778445040000,-1040.15,0.00011506,2]
[422004289,1778445040000,-500.0,0.00011506,2]
[422004292,1778445040000,-582.64661183,0.00011506,2]
[422004290,1778445040000,-500.0,0.00011506,2]
[422004287,1778445040000,-672.67,0.00011506,2]
[422004295,1778445040000,-500.0,0.00011506,2]
[422004228,1778445040000,-500.0,0.00011506,2]
[422004262,1778445040000,-1531.85,0.00011506,2]
[422004261,1778445040000,-824.46,0.00011506,2]
[422004274,1778445040000,-500.0,0.00011506,2]
[422004256,1778445040000,-887.43,0.00011506,2]
[422004233,1778445040000,-500.0,0.00011506,2]
[422004244,1778445040000,-500.0,0.00011506,2]
[422004245,1778445040000,-500.0,0.00011506,2]
[422004235,1778445040000,-682.81,0.00011506,2]
[422004236,1778445040000,-500.0,0.00011506,2]
[422004240,1778445040000,-693.12,0.00011506,2]
[422004265,1778445040000,-544.24687952,0.00011506,2]
[422004237,1778445040000,-500.0,0.00011506,2]
[422004241,1778445040000,-455.77259672,0.00011506,2]
[422004238,1778445040000,-724.2,0.00011506,2]
[422004242,1778445040000,-563.59,0.00011506,2]
[422004243,1778445040000,-1511.25,0.00011506,2]
[422004246,1778445040000,-604.16,0.00011506,2]
[422004248,1778445040000,-699.76,0.00011506,2]
[422004249,1778445040000,-550.89,0.00011506,2]
[422004239,1778445040000,-500.0,0.00011506,2]
[422004251,1778445040000,-500.0,0.00011506,2]
[422004253,1778445040000,-500.0,0.00011506,2]
[422004266,1778445040000,-941.28,0.00011506,2]
[422004260,1778445040000,-500.0,0.00011506,2]
[422004258,1778445040000,-542.47,0.00011506,2]
[422004257,1778445040000,-500.0,0.00011506,2]
[422004259,1778445040000,-325.59797381,0.00011506,2]
[422004267,1778445040000,-500.0,0.00011506,2]
[422004252,1778445040000,-1466.81,0.00011506,2]
[422004250,1778445040000,-500.0,0.00011506,2]
[422004294,1778445040000,-3042.14,0.00011506,2]
[422004254,1778445040000,-695.8,0.00011506,2]
[422004247,1778445040000,-500.0,0.00011506,2]
[422004255,1778445040000,-500.0,0.00011506,2]
[422004307,1778445041000,-4122.89493186,0.00011506,2]
[422004305,1778445041000,-1246.37,0.00011506,2]
[422004306,1778445041000,-500.0,0.00011506,2]
[422004299,1778445041000,-941.83,0.00011506,2]
[422004304,1778445041000,-1935.64,0.00011506,2]
[422004303,1778445041000,-500.0,0.00011506,2]
[422004297,1778445041000,-3917.56,0.00011506,2]
[422004308,1778445041000,-103.69506814,0.00011506,2]
[422004298,1778445041000,-4774.8,0.00011506,2]
[422004301,1778445041000,-948.18,0.00011506,2]
[422004302,1778445041000,-1162.01,0.00011506,2]
[422004296,1778445041000,-500.0,0.00011506,2]
[422004309,1778445041000,-1499.44,0.00011506,2]
[422004310,1778445041000,-1863.37399763,0.00011506,2]
[422004300,1778445041000,-807.59,0.00011506,2]
[422004327,1778445042000,-279.61218333,9.718e-05,2]
[422004331,1778445042000,-310.41600237,0.00011506,2]
[422004333,1778445042000,-500.0,0.00011506,2]
[422004329,1778445042000,-300.0,9.718e-05,2]
[422004328,1778445042000,-20.38781667,9.718e-05,2]
[422004330,1778445042000,-300.0,9.718e-05,2]
[422004334,1778445042000,-38.17137688,0.00011506,2]
[422004332,1778445042000,-888.75,0.00011506,2]
[422004379,1778445046000,-1829.08,0.00011506,2]
[422004384,1778445046000,-500.0,0.00011506,2]
[422004378,1778445046000,-4127.31,0.00011506,2]
[422004380,1778445046000,-500.0,0.00011506,2]
[422004381,1778445046000,-1501.28,0.00011506,2]
[422004382,1778445046000,-4527.13,0.00011506,2]
[422004374,1778445046000,-930.44,0.00011232,2]
[422004383,1778445046000,-2237.71,0.00011506,2]
[422004377,1778445046000,-3277.04,0.00011506,2]
[422004375,1778445046000,-461.82862312,0.00011506,2]
[422004373,1778445046000,-521.9,0.00011232,2]
[422004371,1778445046000,-521.9,0.00010958,2]
[422004366,1778445046000,-300.0,9.718e-05,2]
[422004367,1778445046000,-300.0,9.718e-05,2]
[422004369,1778445046000,-300.0,9.718e-05,2]
[422004370,1778445046000,-443.0,0.00010631,2]
[422004365,1778445046000,-300.0,9.718e-05,2]
[422004368,1778445046000,-300.0,9.718e-05,2]
[422004364,1778445046000,-300.0,9.718e-05,2]
[422004363,1778445046000,-300.0,9.718e-05,2]
[422004361,1778445046000,-300.0,9.718e-05,2]
[422004372,1778445046000,-930.44,0.00010958,2]
[422004362,1778445046000,-300.0,9.718e-05,2]
[422004359,1778445046000,-5000.0,9.621e-05,2]
[422004360,1778445046000,-300.0,9.718e-05,2]
[422004385,1778445046000,-4068.11,0.00011506,2]
[422004388,1778445046000,-500.0,0.00011506,2]
[422004376,1778445046000,-1320.56,0.00011506,2]
[422004386,1778445046000,-500.0,0.00011506,2]
[422004387,1778445046000,-500.0,0.00011506,2]
[422004414,1778445046000,-724.2,0.0001178,2]
[422004411,1778445046000,-682.81,0.0001178,2]
[422004408,1778445046000,-500.0,0.0001178,2]
[422004412,1778445046000,-400.5007776,0.0001178,2]
[422004415,1778445046000,-458.45232829,0.0001178,2]
[422004410,1778445046000,-512.4,0.0001178,2]
[422004409,1778445046000,-500.0,0.0001178,2]
[422004407,1778445046000,-266.487928,0.0001178,2]
[422004399,1778445046000,-151.0,0.00011589,2]
[422004400,1778445046000,-461.67526834,0.00011746,2]
[422004401,1778445046000,-2185.42,0.0001178,2]
[422004406,1778445046000,-798.65,0.0001178,2]
[422004413,1778445046000,-500.0,0.0001178,2]
[422004397,1778445046000,-151.0,0.00011589,2]
[422004398,1778445046000,-151.0,0.00011589,2]
[422004390,1778445046000,-930.44,0.00011506,2]
[422004391,1778445046000,-314.0,0.00011507,3]
[422004393,1778445046000,-151.0,0.00011589,2]
[422004392,1778445046000,-151.0,0.00011589,2]
[422004394,1778445046000,-151.0,0.00011589,2]
[422004389,1778445046000,-521.9,0.00011506,2]
[422004396,1778445046000,-151.0,0.00011589,2]
[422004402,1778445046000,-500.0,0.0001178,2]
[422004403,1778445046000,-500.0,0.0001178,2]
[422004404,1778445046000,-500.0,0.0001178,2]
[422004395,1778445046000,-151.0,0.00011589,2]
[422004405,1778445046000,-540.48,0.0001178,2]
[422004432,1778445047000,-500.0,0.0001178,2]
[422004437,1778445047000,-500.0,0.0001178,2]
[422004443,1778445047000,-1576.49,0.0001178,2]
[422004433,1778445047000,-542.47,0.0001178,2]
[422004435,1778445047000,-824.46,0.0001178,2]
[422004431,1778445047000,-887.43,0.0001178,2]
[422004436,1778445047000,-1531.85,0.0001178,2]
[422004434,1778445047000,-500.0,0.0001178,2]
[422004438,1778445047000,-500.0,0.0001178,2]
[422004428,1778445047000,-201.84531215,0.0001178,2]
[422004442,1778445047000,-500.0,0.0001178,2]
[422004425,1778445047000,-500.0,0.0001178,2]
[422004423,1778445047000,-699.76,0.0001178,2]
[422004426,1778445047000,-500.0,0.0001178,2]
[422004429,1778445047000,-695.8,0.0001178,2]
[422004427,1778445047000,-1466.81,0.0001178,2]
[422004421,1778445047000,-604.16,0.0001178,2]
[422004422,1778445047000,-500.0,0.0001178,2]
[422004424,1778445047000,-550.89,0.0001178,2]
[422004420,1778445047000,-500.0,0.0001178,2]
[422004416,1778445047000,-693.12,0.0001178,2]
[422004419,1778445047000,-500.0,0.0001178,2]
[422004417,1778445047000,-563.59,0.0001178,2]
[422004418,1778445047000,-1511.25,0.0001178,2]
[422004430,1778445047000,-500.0,0.0001178,2]
[422004439,1778445047000,-941.28,0.0001178,2]
[422004449,1778445047000,-1457.85,0.0001178,2]
[422004441,1778445047000,-1211.73,0.0001178,2]
[422004468,1778445047000,-416.96603473,0.0001178,2]
[422004461,1778445047000,-500.0,0.0001178,2]
[422004465,1778445047000,-3042.14,0.0001178,2]
[422004466,1778445047000,-500.0,0.0001178,2]
[422004464,1778445047000,-6371.14480498,0.0001178,2]
[422004463,1778445047000,-15807.53519502,0.0001178,2]
[422004462,1778445047000,-1040.15,0.0001178,2]
[422004460,1778445047000,-500.0,0.0001178,2]
[422004459,1778445047000,-3184.33,0.0001178,2]
[422004458,1778445047000,-672.67,0.0001178,2]
[422004456,1778445047000,-500.0,0.0001178,2]
[422004469,1778445047000,-1201.3956787,0.0001178,2]
[422004467,1778445047000,-500.0,0.0001178,2]
[422004445,1778445047000,-500.0,0.0001178,2]
[422004446,1778445047000,-500.0,0.0001178,2]
[422004452,1778445047000,-500.0,0.0001178,2]
[422004455,1778445047000,-3984.66,0.0001178,2]
[422004450,1778445047000,-1029.22,0.0001178,2]
[422004454,1778445047000,-2936.56,0.0001178,2]
[422004451,1778445047000,-1323.5,0.0001178,2]
[422004448,1778445047000,-500.0,0.0001178,2]
[422004453,1778445047000,-1419.9,0.0001178,2]
[422004447,1778445047000,-500.0,0.0001178,2]
[422004444,1778445047000,-1386.81,0.0001178,2]
[422004457,1778445047000,-1328.58,0.0001178,2]
[422004440,1778445047000,-500.0,0.0001178,2]
[422004470,1778445065000,151.0,5.881e-05,2]
[422004636,1778446232000,-289.00268781,0.00010565,2]
[422004587,1778446232000,-300.0,7.525e-05,2]
[422004589,1778446232000,-300.0,7.525e-05,2]
[422004591,1778446232000,-300.0,7.525e-05,2]
[422004597,1778446232000,-420.0,8.276e-05,2]
[422004596,1778446232000,-190.36,8.193e-05,2]
[422004595,1778446232000,-159.608314,7.967e-05,2]
[422004605,1778446232000,-587.0,9.104e-05,2]
[422004606,1778446232000,-9944.57089905,9.123e-05,2]
[422004617,1778446232000,-160.0,0.00010105,2]
[422004619,1778446232000,-160.0,0.00010105,2]
[422004625,1778446232000,-160.0,0.00010105,2]
[422004615,1778446232000,-823.0,0.00010014,2]
[422004621,1778446232000,-161.61126227,0.00010105,2]
[422004626,1778446232000,-456.3275978,0.00010191,2]
[422004622,1778446232000,-160.0,0.00010105,2]
[422004613,1778446232000,-152.0,9.747e-05,2]
[422004628,1778446232000,-1000.0,0.00010215,2]
[422004611,1778446232000,-159.608314,9.522e-05,2]
[422004608,1778446232000,-55.42910095,9.123e-05,2]
[422004609,1778446232000,-864.0,9.286e-05,2]
[422004630,1778446232000,-500.0,0.00010565,2]
[422004632,1778446232000,-500.0,0.00010565,2]
[422004634,1778446232000,-500.0,0.00010565,2]
[422004593,1778446232000,-600.0,7.674e-05,2]
[422004603,1778446232000,-159.608314,8.744e-05,2]
[422004566,1778446232000,-300.0,7.525e-05,2]
[422004598,1778446232000,-720.0,8.442e-05,2]
[422004539,1778446232000,-5000.0,4.481e-05,2]
[422004549,1778446232000,-159.608314,6.411e-05,2]
[422004551,1778446232000,-449.12571121,6.595e-05,2]
[422004553,1778446232000,-1187.0,6.782e-05,2]
[422004556,1778446232000,-300.0,7.524e-05,2]
[422004554,1778446232000,-159.608314,7.189e-05,2]
[422004558,1778446232000,-300.0,7.524e-05,2]
[422004545,1778446232000,-159.608314,4.856e-05,2]
[422004541,1778446232000,-1578.23208332,4.526e-05,2]
[422004543,1778446232000,-380.6150095,4.595e-05,2]
[422004560,1778446232000,-300.0,7.524e-05,2]
[422004547,1778446232000,-159.608314,5.634e-05,2]
[422004564,1778446232000,-300.0,7.525e-05,2]
[422004646,1778446232000,-500.0,0.00010856,2]
[422004562,1778446232000,-300.0,7.524e-05,2]
[422004572,1778446232000,-300.0,7.525e-05,2]
[422004568,1778446232000,-300.0,7.525e-05,2]
[422004574,1778446232000,-300.0,7.525e-05,2]
[422004579,1778446232000,-300.0,7.525e-05,2]
[422004575,1778446232000,-300.0,7.525e-05,2]
[422004570,1778446232000,-300.0,7.525e-05,2]
[422004577,1778446232000,-300.0,7.525e-05,2]
[422004581,1778446232000,-300.0,7.525e-05,2]
[422004583,1778446232000,-300.0,7.525e-05,2]
[422004585,1778446232000,-300.0,7.525e-05,2]
[422004601,1778446232000,-517.63641292,8.595e-05,2]
[422004642,1778446232000,-1411.0,0.00010839,2]
[422004650,1778446232000,-500.0,0.00010856,2]
[422004647,1778446232000,-500.0,0.00010856,2]
[422004673,1778446232000,-500.0,0.00010856,2]
[422004672,1778446232000,-500.0,0.00010856,2]
[422004638,1778446232000,-586.14711463,0.00010595,2]
[422004676,1778446232000,-500.0,0.00010856,2]
[422004678,1778446232000,-500.0,0.00010856,2]
[422004679,1778446232000,-500.0,0.00010856,2]
[422004677,1778446232000,-500.0,0.00010856,2]
[422004685,1778446232000,-296.58739518,0.00010856,2]
[422004681,1778446232000,-500.0,0.00010856,2]
[422004682,1778446232000,-500.0,0.00010856,2]
[422004686,1778446232000,-499.99999999,0.00010856,2]
[422004688,1778446232000,-1440.25617,0.00010857,2]
[422004680,1778446232000,-500.0,0.00010856,2]
[422004683,1778446232000,-500.0,0.00010856,2]
[422004687,1778446232000,-454.48332832,0.00010857,2]
[422004684,1778446232000,-500.0,0.00010856,2]
[422004690,1778446232000,-1440.25617,0.00010857,2]
[422004689,1778446232000,-1440.25617,0.00010857,2]
[422004691,1778446232000,-1440.25617,0.00010857,2]
[422004696,1778446232000,-1440.25617,0.00010857,2]
[422004697,1778446232000,-1440.25617,0.00010857,2]
[422004693,1778446232000,-1440.25617,0.00010857,2]
[422004692,1778446232000,-1440.25617,0.00010857,2]
[422004694,1778446232000,-1440.25617,0.00010857,2]
[422004695,1778446232000,-1440.25617,0.00010857,2]
[422004671,1778446232000,-500.0,0.00010856,2]
[422004668,1778446232000,-500.0,0.00010856,2]
[422004669,1778446232000,-500.0,0.00010856,2]
[422004667,1778446232000,-500.0,0.00010856,2]
[422004645,1778446232000,-500.0,0.00010856,2]
[422004640,1778446232000,-151.0,0.00010689,2]
[422004644,1778446232000,-500.0,0.00010856,2]
[422004648,1778446232000,-500.0,0.00010856,2]
[422004643,1778446232000,-647.0,0.00010839,2]
[422004641,1778446232000,-163.91805231,0.00010757,2]
[422004666,1778446232000,-500.0,0.00010856,2]
[422004662,1778446232000,-500.0,0.00010856,2]
[422004660,1778446232000,-549.16415074,0.00010856,2]
[422004659,1778446232000,-500.0,0.00010856,2]
[422004649,1778446232000,-500.0,0.00010856,2]
[422004661,1778446232000,-500.0,0.00010856,2]
[422004658,1778446232000,-500.0,0.00010856,2]
[422004655,1778446232000,-500.0,0.00010856,2]
[422004652,1778446232000,-500.0,0.00010856,2]
[422004670,1778446232000,-500.0,0.00010856,2]
[422004665,1778446232000,-500.0,0.00010856,2]
[422004674,1778446232000,-500.0,0.00010856,2]
[422004664,1778446232000,-500.0,0.00010856,2]
[422004663,1778446232000,-500.0,0.00010856,2]
[422004656,1778446232000,-500.0,0.00010856,2]
[422004657,1778446232000,-500.0,0.00010856,2]
[422004653,1778446232000,-500.0,0.00010856,2]
[422004654,1778446232000,-500.0,0.00010856,2]
[422004651,1778446232000,-500.0,0.00010856,2]
[422004675,1778446232000,-500.0,0.00010856,2]
[422004703,1778446233000,-1440.25617,0.00010857,2]
[422004705,1778446233000,-1440.25617,0.00010857,2]
[422004704,1778446233000,-1440.25617,0.00010857,2]
[422004708,1778446233000,-1440.25617,0.00010857,2]
[422004706,1778446233000,-1440.25617,0.00010857,2]
[422004698,1778446233000,-1440.25617,0.00010857,2]
[422004700,1778446233000,-1440.25617,0.00010857,2]
[422004701,1778446233000,-1440.25617,0.00010857,2]
[422004699,1778446233000,-1440.25617,0.00010857,2]
[422004707,1778446233000,-1440.25617,0.00010857,2]
[422004702,1778446233000,-1440.25617,0.00010857,2]
[422004710,1778446233000,-1512.26897851,0.00010857,2]
[422004714,1778446233000,-1512.26897851,0.00010857,2]
[422004712,1778446233000,-1512.26897851,0.00010857,2]
[422004721,1778446233000,-34765.27853085,0.00010858,2]
[422004720,1778446233000,-5652.5,0.00010858,2]
[422004709,1778446233000,-1512.26897851,0.00010857,2]
[422004719,1778446233000,-6939.41174452,0.00010858,2]
[422004715,1778446233000,-1512.26897851,0.00010857,2]
[422004722,1778446233000,-21499.34173762,0.00010858,2]
[422004713,1778446233000,-1512.26897851,0.00010857,2]
[422004718,1778446233000,-16474.74522567,0.00010858,2]
[422004717,1778446233000,-2601.10264302,0.00010857,2]
[422004711,1778446233000,-1512.26897851,0.00010857,2]
[422004716,1778446233000,-1512.26897851,0.00010857,2]
[422004770,1778446240000,-13181.2262541,0.00010858,2]
[422004786,1778446241000,-579.83,0.00010958,2]
[422004791,1778446241000,-500.0,0.00010958,2]
[422004794,1778446241000,-577.6,0.00010958,2]
[422004793,1778446241000,-500.0,0.00010958,2]
[422004792,1778446241000,-500.0,0.00010958,2]
[422004801,1778446241000,-500.0,0.00010958,2]
[422004808,1778446241000,-500.0,0.00010958,2]
[422004800,1778446241000,-501.70714863,0.00010958,2]
[422004804,1778446241000,-500.0,0.00010958,2]
[422004799,1778446241000,-1259.38,0.00010958,2]
[422004795,1778446241000,-500.0,0.00010958,2]
[422004797,1778446241000,-500.0,0.00010958,2]
[422004789,1778446241000,-778.29,0.00010958,2]
[422004778,1778446241000,-3508.88550821,0.00010858,2]
[422004790,1778446241000,-500.0,0.00010958,2]
[422004796,1778446241000,-603.5,0.00010958,2]
[422004788,1778446241000,-926.75,0.00010958,2]
[422004785,1778446241000,-500.0,0.00010958,2]
[422004779,1778446241000,-509.10569818,0.00010879,2]
[422004807,1778446241000,-583.13,0.00010958,2]
[422004775,1778446241000,-23698.19573242,0.00010858,2]
[422004780,1778446241000,-2034.38636994,0.00010879,2]
[422004782,1778446241000,-500.0,0.00010958,2]
[422004784,1778446241000,-500.0,0.00010958,2]
[422004783,1778446241000,-569.01,0.00010958,2]
[422004776,1778446241000,-4062.29922733,0.00010858,2]
[422004781,1778446241000,-1821.1763,0.00010958,2]
[422004787,1778446241000,-500.0,0.00010958,2]
[422004809,1778446241000,-500.0,0.00010958,2]
[422004777,1778446241000,-468022.40549375,0.00010858,2]
[422004802,1778446241000,-503.0393719,0.00010958,2]
[422004798,1778446241000,-500.0,0.00010958,2]
[422004834,1778446241000,-1102.92,0.00010958,2]
[422004832,1778446241000,-500.0,0.00010958,2]
[422004829,1778446241000,-500.0,0.00010958,2]
[422004828,1778446241000,-814.14,0.00010958,2]
[422004830,1778446241000,-500.0,0.00010958,2]
[422004831,1778446241000,-1313.74,0.00010958,2]
[422004826,1778446241000,-500.0,0.00010958,2]
[422004824,1778446241000,-500.0,0.00010958,2]
[422004825,1778446241000,-500.0,0.00010958,2]
[422004833,1778446241000,-1214.88,0.00010958,2]
[422004822,1778446241000,-1009.77,0.00010958,2]
[422004823,1778446241000,-500.0,0.00010958,2]
[422004821,1778446241000,-3559.6,0.00010958,2]
[422004827,1778446241000,-1155.68,0.00010958,2]
[422004816,1778446241000,-1276.54,0.00010958,2]
[422004820,1778446241000,-500.0,0.00010958,2]
[422004805,1778446241000,-503.46,0.00010958,2]
[422004803,1778446241000,-500.0,0.00010958,2]
[422004810,1778446241000,-500.0,0.00010958,2]
[422004812,1778446241000,-1222.34,0.00010958,2]
[422004815,1778446241000,-500.0,0.00010958,2]
[422004813,1778446241000,-501.82765184,0.00010958,2]
[422004806,1778446241000,-500.0,0.00010958,2]
[422004811,1778446241000,-500.0,0.00010958,2]
[422004814,1778446241000,-739.53,0.00010958,2]
[422004818,1778446241000,-784.4,0.00010958,2]
[422004817,1778446241000,-500.0,0.00010958,2]
[422004819,1778446241000,-500.0,0.00010958,2]
[422004873,1778446242000,-158.717751,0.00010958,2]
[422004880,1778446242000,-158.717751,0.00010958,2]
[422004879,1778446242000,-163.479283,0.00010958,2]
[422004877,1778446242000,-163.479283,0.00010958,2]
[422004883,1778446242000,-163.479283,0.00010958,2]
[422004869,1778446242000,-2867.41,0.00010958,2]
[422004872,1778446242000,-158.717751,0.00010958,2]
[422004881,1778446242000,-163.479283,0.00010958,2]
[422004878,1778446242000,-158.717751,0.00010958,2]
[422004882,1778446242000,-158.717751,0.00010958,2]
[422004871,1778446242000,-1600.44,0.00010958,2]
[422004874,1778446242000,-158.717751,0.00010958,2]
[422004876,1778446242000,-158.717751,0.00010958,2]
[422004898,1778446242000,-158.717751,0.00010958,2]
[422004884,1778446242000,-158.717751,0.00010958,2]
[422004887,1778446242000,-163.479283,0.00010958,2]
[422004886,1778446242000,-777.65,0.00010958,2]
[422004896,1778446242000,-163.479283,0.00010958,2]
[422004888,1778446242000,-163.479283,0.00010958,2]
[422004885,1778446242000,-163.479283,0.00010958,2]
[422004890,1778446242000,-163.479283,0.00010958,2]
[422004894,1778446242000,-163.479283,0.00010958,2]
[422004889,1778446242000,-163.479283,0.00010958,2]
[422004891,1778446242000,-158.717751,0.00010958,2]
[422004895,1778446242000,-158.717751,0.00010958,2]
[422004892,1778446242000,-163.479283,0.00010958,2]
[422004893,1778446242000,-158.717751,0.00010958,2]
[422004860,1778446242000,-1090.58,0.00010958,2]
[422004875,1778446242000,-158.717751,0.00010958,2]
[422004859,1778446242000,-500.0,0.00010958,2]
[422004855,1778446242000,-747.38,0.00010958,2]
[422004864,1778446242000,-259.41589593,0.00010958,2]
[422004836,1778446242000,-1183.25,0.00010958,2]
[422004835,1778446242000,-500.0,0.00010958,2]
[422004841,1778446242000,-560.56,0.00010958,2]
[422004842,1778446242000,-1107.15,0.00010958,2]
[422004843,1778446242000,-2653.61,0.00010958,2]
[422004908,1778446242000,-158.717751,0.00010958,2]
[422004839,1778446242000,-2447.13,0.00010958,2]
[422004840,1778446242000,-3320.55,0.00010958,2]
[422004838,1778446242000,-857.68,0.00010958,2]
[422004845,1778446242000,-500.0,0.00010958,2]
[422004847,1778446242000,-2535.12,0.00010958,2]
[422004848,1778446242000,-500.0,0.00010958,2]
[422004851,1778446242000,-706.64,0.00010958,2]
[422004846,1778446242000,-602.08897709,0.00010958,2]
[422004850,1778446242000,-500.0,0.00010958,2]
[422004852,1778446242000,-4395.52,0.00010958,2]
[422004856,1778446242000,-4177.95,0.00010958,2]
[422004857,1778446242000,-824.1,0.00010958,2]
[422004853,1778446242000,-866.79,0.00010958,2]
[422004849,1778446242000,-500.0,0.00010958,2]
[422004854,1778446242000,-4630.97,0.00010958,2]
[422004867,1778446242000,-500.0,0.00010958,2]
[422004870,1778446242000,-3698.27,0.00010958,2]
[422004861,1778446242000,-500.0,0.00010958,2]
[422004863,1778446242000,-1312.01,0.00010958,2]
[422004858,1778446242000,-1016.76,0.00010958,2]
[422004865,1778446242000,-1902.07,0.00010958,2]
[422004866,1778446242000,-1693.69,0.00010958,2]
[422004862,1778446242000,-829.66,0.00010958,2]
[422004868,1778446242000,-1155.49,0.00010958,2]
[422004910,1778446242000,-158.717751,0.00010958,2]
[422004837,1778446242000,-500.0,0.00010958,2]
[422004899,1778446242000,-158.717751,0.00010958,2]
[422004936,1778446242000,-158.717751,0.00010958,2]
[422004935,1778446242000,-158.717751,0.00010958,2]
[422004939,1778446242000,-158.717751,0.00010958,2]
[422004941,1778446242000,-158.717751,0.00010958,2]
[422004942,1778446242000,-158.717751,0.00010958,2]
[422004943,1778446242000,-601.9,0.00010958,2]
[422004952,1778446242000,-158.717751,0.00010958,2]
[422004948,1778446242000,-158.717751,0.00010958,2]
[422004953,1778446242000,-158.717751,0.00010958,2]
[422004940,1778446242000,-158.717751,0.00010958,2]
[422004944,1778446242000,-158.717751,0.00010958,2]
[422004949,1778446242000,-158.717751,0.00010958,2]
[422004951,1778446242000,-158.717751,0.00010958,2]
[422004950,1778446242000,-158.717751,0.00010958,2]
[422004947,1778446242000,-158.717751,0.00010958,2]
[422004965,1778446242000,-158.717751,0.00010958,2]
[422004968,1778446242000,-163.479283,0.00010958,2]
[422004966,1778446242000,-158.717751,0.00010958,2]
[422004967,1778446242000,-158.717751,0.00010958,2]
[422004972,1778446242000,-500.0,0.00010958,2]
[422004970,1778446242000,-158.717751,0.00010958,2]
[422004959,1778446242000,-158.717751,0.00010958,2]
[422004956,1778446242000,-158.717751,0.00010958,2]
[422004962,1778446242000,-158.717751,0.00010958,2]
[422004963,1778446242000,-158.717751,0.00010958,2]
[422004958,1778446242000,-158.717751,0.00010958,2]
[422004964,1778446242000,-158.717751,0.00010958,2]
[422004960,1778446242000,-158.717751,0.00010958,2]
[422004909,1778446242000,-158.717751,0.00010958,2]
[422004934,1778446242000,-158.717751,0.00010958,2]
[422004932,1778446242000,-158.717751,0.00010958,2]
[422004844,1778446242000,-500.0,0.00010958,2]
[422004931,1778446242000,-158.717751,0.00010958,2]
[422004901,1778446242000,-158.717751,0.00010958,2]
[422004905,1778446242000,-158.717751,0.00010958,2]
[422004897,1778446242000,-158.717751,0.00010958,2]
[422004902,1778446242000,-158.717751,0.00010958,2]
[422004903,1778446242000,-158.717751,0.00010958,2]
[422004900,1778446242000,-158.717751,0.00010958,2]
[422004906,1778446242000,-158.717751,0.00010958,2]
[422004904,1778446242000,-158.717751,0.00010958,2]
[422004911,1778446242000,-158.717751,0.00010958,2]
[422004913,1778446242000,-158.717751,0.00010958,2]
[422004916,1778446242000,-1313.62,0.00010958,2]
[422004923,1778446242000,-158.717751,0.00010958,2]
[422004912,1778446242000,-1958.0,0.00010958,2]
[422004933,1778446242000,-158.717751,0.00010958,2]
[422004914,1778446242000,-158.717751,0.00010958,2]
[422004907,1778446242000,-158.717751,0.00010958,2]
[422004920,1778446242000,-158.717751,0.00010958,2]
[422004919,1778446242000,-158.717751,0.00010958,2]
[422004928,1778446242000,-158.717751,0.00010958,2]
[422004930,1778446242000,-158.717751,0.00010958,2]
[422004937,1778446242000,-158.717751,0.00010958,2]
[422004926,1778446242000,-158.717751,0.00010958,2]
[422004938,1778446242000,-158.717751,0.00010958,2]
[422004929,1778446242000,-158.717751,0.00010958,2]
[422004921,1778446242000,-158.717751,0.00010958,2]
[422004922,1778446242000,-158.717751,0.00010958,2]
[422004925,1778446242000,-158.717751,0.00010958,2]